[Event "German Bundesliga 2024-25"]
[Site "Germany"]
[Date "2024.10.06"]
[Round "2.2"]
[White "Gledura, Benjamin"]
[Black "Fedoseev, Vladimir"]
[Result "1-0"]
[Annotator "TA"]
[ECO "D24"]
[WhiteElo "2639"]
[BlackElo "2698"]
[PlyCount "99"]
[EventDate "2024.09.27"]
[EventType "team-tourn"]
[EventCountry "GER"]
[SourceTitle "playchess.com"]
[Source "ChessBase"]
[SourceQuality "1"]
[WhiteTeam "Deizisau"]
[BlackTeam "Bayern Muenchen"]
[TimeControl "40/5400+30:1800+30"]

{[%evp 13,99,102,113,91,110,103,106,73,86,93,85,75,73,67,68,54,81,86,95,91,103,99,87,72,82,91,125,106,114,98,158,168,150,47,218,45,178,168,176,152,154,152,155,134,195,181,266,281,266,184,169,138,128,123,281,269,310,314,330,335,335,249,1066,1080,1071,1052,1080,1050,1081,1067,1010,928,767,727,1844,1820,4132,4132,4094,4132,3186,4132,3143,2761,5335,4224,1021,998]} 1. d4 {[%emt 0:00:04]} d5 {[%emt 0:01:03]} 2. c4 {[%emt 0:00:14]} dxc4 {[%emt 0:00:15]} 3. Nf3 {[%emt 0:00:16]} c5 {[%emt 0:01:37]} 4. d5 {[%emt 0:13:34]} e6 {[%emt 0:00:10]} 5. Nc3 {[%emt 0:00:33]} Nf6 {[%emt 0:06:20]} 6. e4 {[%emt 0:03:19]} Nxe4 {[%emt 0:04:18]} 7. Nxe4 {[%emt 0:02:10]} exd5 {[%emt 0:00:21][%cal Of8e7]} 8. Nc3 {[%emt 0:03:43] White is much more active. Excellent horsemanship.} Be6 {[%emt 0:00:28]} 9. Ng5 $1 {[%emt 0:03:43]} Nc6 {[%emt 0:00:05]} 10. Nxe6 {[%emt 0:00:31] White is better.} fxe6 {[%emt 0:00:04]} 11. g3 {[%emt 0:01:17] Threatens to win with Bh3.} Qf6 {[%emt 0:04:59]} 12. Bg2 {[%emt 0:00:58]} Be7 {[%emt 0:03:50]} 13. O-O {[%emt 0:00:52]} Rd8 {[%emt 0:04:10]} 14. Bd2 {[%emt 0:09:36]} O-O {[%emt 0:02:53]} 15. b3 $1 {[%emt 0:01:30]} cxb3 {[%emt 0:04:56]} 16. axb3 {[%emt 0:00:22]} Qf7 {[%emt 0:06:07]} 17. f4 {[%emt 0:03:35]} Bf6 {[%emt 0:02:31]} 18. Rc1 {[%emt 0:00:54]} b6 {[%emt 0:00:21]} 19. Kh1 {[%emt 0:01:59]} Nd4 {[%emt 0:06:06]} 20. Ne2 {[%emt 0:05:45]} Nf5 {[%emt 0:00:18]} 21. Ng1 {[%emt 0:05:20]} c4 {[%emt 0:04:31]} 22. bxc4 $16 {[%emt 0:08:07]} dxc4 {[%emt 0:00:07]} 23. Rxc4 {[%emt 0:00:44]} (23. Qe1 $16) 23... b5 $2 {[%emt 0:12:25]} ({Black should play} 23... Ne3 $14 24. Bxe3 Rxd1 25. Rxd1 b5) 24. Rc6 $2 {[%emt 0:08:45]} (24. Re4 $1 $18) 24... Qd7 {[%emt 0:03:54] [#]} ({Better is} 24... Ne3 $14 25. Bxe3 Rxd1 26. Rxd1 a5) 25. Qe1 $1 $18 {[%emt 0:02:36] Ba5 is the strong threat.} Nd4 {[%emt 0:00:41]} 26. Rc3 {[%emt 0:00:47]} b4 {[%emt 0:04:46]} 27. Rd3 {[%emt 0:00:31]} a5 {[%emt 0:00:24]} 28. g4 {[%emt 0:02:58]} Qf7 {[%emt 0:03:22]} (28... Qb5 $16 29. Qe4 Qc6 30. Rxd4 (30. Qxc6 Nxc6 31. Rxd8 Rxd8 $16) 30... Qxe4 31. Rxe4 Rxd2 32. Rxe6 (32. Nf3 Rd6 $16) 32... a4) 29. Qd1 {[%emt 0:04:58]} Qg6 {[%emt 0:01:45]} (29... Qc7 $142) 30. Bc1 {[%emt 0:02:53]} Nb5 {[%emt 0:05:25]} 31. f5 {[%emt 0:01:07]} exf5 {[%emt 0:00:57]} 32. gxf5 {[%emt 0:01:04]} (32. Rxf5 Nc3 33. Qf1 Rde8 34. Rxa5 Qxg4) 32... Qe8 {[%emt 0:01:49]} 33. Ne2 {[%emt 0:01:01][%cal Bg1e2,Be2f4,Bf4g6][%mdl 32] Nf4 would now be deadly.} Kh8 $2 {[%emt 0:02:49] [#]} (33... Nc3 $16 34. Nxc3 Bxc3) 34. Nf4 $1 {[%emt 0:01:15]} Rxd3 {[%emt 0:01:49]} 35. Qxd3 {[%emt 0:00:08][%cal Of4g6] Hoping for Ng6+!} (35. Nxd3 Nc3 36. Qg4 Qe2 $16) 35... Nc3 {[%emt 0:01:05]} 36. Bb2 {[%emt 0:04:03] aiming for Bxc3.} Qb5 {[%emt 0:00:07] [#]} 37. Ng6+ $1 {[%emt 0:04:05]} Kg8 $2 {[%emt 0:00:01]} (37... hxg6 38. Qh3+ Bh4 (38... Kg8 39. fxg6 Re8 40. Qh7+ Kf8 41. Rxf6+ Ke7 42. Qxg7+ Kd8 43. Rd6+ Kc8 44. Rc6+)) 38. Qxb5 {[%emt 0:00:31] White is clearly winning.} Nxb5 {[%emt 0:00:05]} 39. Bd5+ {[%emt 0:00:05]} Rf7 {[%emt 0:00:04]} 40. Bxf6 {[%emt 0:01:50]} gxf6 {[%emt 0:00:06][%cal Bg7f6,Bf6e5,Be5e4,Be4e3][%mdl 32]} 41. Rg1 {[%emt 0:12:46]} Nc3 {[%emt 0:00:06]} 42. Ne5+ {[%emt 0:06:19]} Kf8 {[%emt 0:00:08]} 43. Bxf7 {[%emt 0:00:08]} fxe5 {[%emt 0:00:05]} 44. Bc4 {[%emt 0:00:21] White threatens f6 and mate.} Ne4 {[%emt 0:00:41] [#]} 45. f6 $1 {[%emt 0:03:17]} Nxf6 {[%emt 0:00:08]} 46. Ra1 {[%emt 0:00:05]} Ne4 {[%emt 0:00:04]} 47. Rxa5 {[%emt 0:00:36]} Nd2 {[%emt 0:00:04]} 48. Bd5 {[%emt 0:03:23]} e4 {[%emt 0:00:11]} 49. Kg2 {[%emt 0:00:49]} e3 {[%emt 0:00:09]} 50. Rb5 {[%emt 0:01:29] Weighted Error Value: White=0.19 (very precise) /Black=0.29 (precise) .  Loses game:     	---       	Black=1      Missed win:     	White=1     	---        Mistake:       	White=1     	Black=6      Inaccurate:     	White=2     	Black=2      OK:         	White=13    	Black=11     Best:        	White=1     	---        Strong:       	White=5     	---} 1-0

[Event "German Bundesliga 2024-25"]
[Site "Germany"]
[Date "2024.10.06"]
[Round "2.2"]
[White "Janik, Igor"]
[Black "Bartel, Mateusz"]
[Result "1/2-1/2"]
[Annotator "TA"]
[ECO "A07"]
[WhiteElo "2501"]
[BlackElo "2608"]
[PlyCount "69"]
[EventDate "2024.09.27"]
[EventType "team-tourn"]
[EventCountry "GER"]
[SourceTitle "playchess.com"]
[Source "ChessBase"]
[SourceQuality "1"]
[WhiteTeam "St. Pauli"]
[BlackTeam "TU Dresden"]
[TimeControl "40/5400+30:1800+30"]

{[%evp 9,69,12,16,9,22,10,17,12,10,12,0,15,12,4,25,22,14,23,27,26,40,44,43,36,29,23,31,30,25,31,30,27,19,20,25,22,15,18,19,25,24,24,31,14,14,14,16,15,20,0,0,0,0,0,17,0,0,0,0,0,0,0]} 1. Nf3 {[%emt 0:00:05]} d5 {[%emt 0:03:13]} 2. g3 {[%emt 0:03:01]} b6 {[%emt 0:00:07]} 3. Bg2 {[%emt 0:00:07]} Bb7 {[%emt 0:00:07]} 4. b3 {[%emt 0:00:03]} Nf6 {[%emt 0:01:31]} 5. Bb2 {[%emt 0:00:06]} e6 {[%emt 0:00:05]} 6. c4 {[%emt 0:00:26]} dxc4 {[%emt 0:06:03]} 7. bxc4 {[%emt 0:00:21]} c5 {[%emt 0:00:05]} 8. Qa4+ {[%emt 0:00:06]} Bc6 {[%emt 0:07:28]} 9. Qb3 {[%emt 0:00:44]} Be7 {[%emt 0:00:09]} 10. d3 {[%emt 0:00:20]} O-O {[%emt 0:00:09]} 11. O-O {[%emt 0:00:12]} Bb7 {[%emt 0:04:27]} 12. Bc3 {[%emt 0:02:20]} Nc6 {[%emt 0:00:36]} 13. Qb2 {[%emt 0:00:42]} Qd7 {[%emt 0:04:25]} 14. Nbd2 {[%emt 0:00:42]} Rfd8 {[%emt 0:00:17]} 15. a4 {[%emt 0:06:36][%cal Ba2a4,Ba4a5][%mdl 32]} Qc7 {[%emt 0:19:39]} 16. Rfb1 {[%emt 0:03:19]} Nb4 {[%emt 0:01:19] [#]} 17. a5 $1 {[%emt 0:01:24]} Ne8 {[%emt 0:03:31]} 18. Nb3 {[%emt 0:04:49]} Bf6 {[%emt 0:03:07]} 19. Bxf6 {[%emt 0:02:42]} Nxf6 {[%emt 0:04:38]} 20. axb6 {[%emt 0:00:41]} axb6 {[%emt 0:00:02]} 21. Nc1 {[%emt 0:01:39]} Nd7 {[%emt 0:01:49]} 22. Na2 {[%emt 0:05:07]} Nxa2 {[%emt 0:00:36]} 23. Rxa2 {[%emt 0:00:08]} Rxa2 {[%emt 0:00:03]} 24. Qxa2 {[%emt 0:00:03]} Ra8 {[%emt 0:00:06][%cal Bd8a8,Ba8a5,Ba5a2][%mdl 32]} 25. Qb2 {[%emt 0:00:04]} Ra5 {[%emt 0:11:08]} 26. Qd2 {[%emt 0:04:38]} h6 {[%emt 0:01:51] The position is equal.} 27. Qe3 {[%emt 0:04:06]} Ra2 {[%emt 0:01:36]} 28. h3 {[%emt 0:03:51]} Bc6 {[%emt 0:01:42]} 29. Re1 {[%emt 0:02:10]} Qa7 {[%emt 0:01:58]} 30. Nd2 {[%emt 0:00:35]} Bxg2 {[%emt 0:00:53]} 31. Kxg2 {[%emt 0:00:02]} Qa5 {[%emt 0:00:10]} 32. Nf3 {[%emt 0:00:12]} b5 {[%emt 0:03:29]} 33. cxb5 {[%emt 0:00:19]} Qxb5 {[%emt 0:00:04]} 34. Kf1 {[%emt 0:04:44]} c4 {[%emt 0:00:57]} 35. dxc4 {[%emt 0:00:07] Weighted Error Value: White=0.03 (flawless) /Black=0.03 (flawless) .  OK:         	White=13    	Black=11     Best:        	White=1     	---} 1/2-1/2

[Event "German Bundesliga 2024-25"]
[Site "Germany"]
[Date "2024.10.06"]
[Round "2.3"]
[White "Santos Latasa, Jaime"]
[Black "Banusz, Tamas"]
[Result "1/2-1/2"]
[Annotator "TA"]
[ECO "B30"]
[WhiteElo "2621"]
[BlackElo "2591"]
[PlyCount "63"]
[EventDate "2024.09.27"]
[EventType "team-tourn"]
[EventCountry "GER"]
[SourceTitle "playchess.com"]
[Source "ChessBase"]
[SourceQuality "1"]
[WhiteTeam "Bayern Muenchen"]
[BlackTeam "Deizisau"]
[TimeControl "40/5400+30:1800+30"]

{[%evp 9,63,31,31,30,31,31,34,34,23,36,29,17,18,16,15,24,10,-3,0,-22,4,-20,-19,-19,-25,-39,8,-45,-27,-36,-27,-48,0,0,0,4,0,0,0,0,16,13,31,25,31,13,16,0,11,10,12,9,7,0,9,5]} 1. e4 {[%emt 0:00:03]} c5 {[%emt 0:00:06]} 2. Nf3 {[%emt 0:00:05]} Nc6 {[%emt 0:00:05]} 3. Nc3 {[%emt 0:00:05]} Nf6 {[%emt 0:00:15]} 4. Bb5 {[%emt 0:00:10]} Qc7 {[%emt 0:00:22]} 5. O-O {[%emt 0:00:34]} Nd4 {[%emt 0:00:15]} 6. Re1 {[%emt 0:00:35]} e5 {[%emt 0:00:10]} 7. d3 {[%emt 0:02:04]} Be7 {[%emt 0:01:46]} 8. Bg5 {[%emt 0:00:32] White is slightly better.} Nxb5 {[%emt 0:02:30]} 9. Nxb5 {[%emt 0:00:21]} Qc6 {[%emt 0:00:11]} 10. Nc3 {[%emt 0:03:19]} (10. Nxe5 Qxb5 11. Nc4 O-O $17) 10... d6 {[%emt 0:01:36]} 11. Bxf6 {[%emt 0:06:05]} Bxf6 {[%emt 0:00:25]} 12. Nd5 {[%emt 0:00:06]} Bd8 {[%emt 0:00:32]} 13. c4 {[%emt 0:03:00]} O-O {[%emt 0:02:56]} 14. Qd2 {[%emt 0:01:24]} Kh8 {[%emt 0:04:53]} 15. h3 {[%emt 0:04:06]} f5 {[%emt 0:07:15]} 16. exf5 {[%emt 0:02:47]} Bxf5 {[%emt 0:02:03]} 17. Qe2 {[%emt 0:00:24]} Qe8 {[%emt 0:12:10]} (17... Rb8 $15 {might be stronger.}) 18. Ne3 {[%emt 0:03:59]} (18. d4 $1 $11) 18... Bd7 {[%emt 0:01:15]} 19. Nd2 {[%emt 0:01:37]} Qg6 {[%emt 0:02:11]} 20. Kh1 {[%emt 0:01:30]} Rf4 {[%emt 0:05:25]} (20... Ba5 $15) 21. Ne4 $11 {[%emt 0:03:48]} Ba5 {[%emt 0:05:51]} 22. Rf1 {[%emt 0:00:36]} Raf8 {[%emt 0:02:10]} 23. f3 {[%emt 0:03:20]} Bd8 {[%emt 0:03:04]} 24. a3 {[%emt 0:02:34]} Rh4 {[%emt 0:09:43][%cal Od7h3] Hoping for ...Bxh3!} 25. Ng4 {[%emt 0:04:05]} (25. Kh2 {keeps more tension.} b6 26. b4 Kg8 27. Ng4) 25... h5 {[%emt 0:00:55]} 26. Ngf2 {[%emt 0:00:20]} Rhf4 {[%emt 0:00:59]} 27. b3 {[%emt 0:02:36]} Qh6 {[%emt 0:04:19] The position is equal.} 28. Nc3 {[%emt 0:02:27]} g5 {[%emt 0:02:07]} 29. Nd5 {[%emt 0:00:45]} R4f7 {[%emt 0:01:16][%cal Og5g4]} 30. Kg1 {[%emt 0:00:43]} Kg7 {[%emt 0:05:24]} 31. Ne3 {[%emt 0:00:49]} Qg6 {[%emt 0:03:58]} 32. Ne4 {[%emt 0:00:42] Weighted Error Value: White=0.07 (flawless) /Black=0.08 (flawless) .  Mistake:       	White=1     	Black=2      Inaccurate:     	---       	Black=1      OK:         	White=13    	Black=8} 1/2-1/2

[Event "German Bundesliga 2024-25"]
[Site "Germany"]
[Date "2024.10.06"]
[Round "2.3"]
[White "Huschenbeth, Niclas"]
[Black "Korobov, Anton"]
[Result "1/2-1/2"]
[Annotator "TA"]
[ECO "C11"]
[WhiteElo "2600"]
[BlackElo "2660"]
[PlyCount "80"]
[EventDate "2024.09.27"]
[EventType "team-tourn"]
[EventCountry "GER"]
[SourceTitle "playchess.com"]
[Source "ChessBase"]
[SourceQuality "1"]
[WhiteTeam "Hamburg"]
[BlackTeam "Viernheim"]
[TimeControl "40/5400+30:1800+30"]

{[%evp 13,80,0,29,23,23,20,18,19,21,7,14,14,18,12,14,18,18,25,13,7,7,11,12,12,12,0,0,0,0,0,0,0,14,10,9,6,14,7,17,0,4,0,6,15,16,22,9,0,27,35,33,0,0,0,12,0,0,0,0,0,0,0,0,-58,0,0,0,-47,0]} 1. e4 {[%emt 0:00:04][%cal Be2e4,Be4e5][%mdl 32]} e6 {[%emt 0:00:09]} 2. d4 {[%emt 0:00:05]} d5 {[%emt 0:00:11]} 3. Nc3 {[%emt 0:00:07]} Nf6 {[%emt 0:00:11]} 4. e5 {[%emt 0:00:05]} Nfd7 {[%emt 0:00:08]} 5. f4 {[%emt 0:00:06]} c5 {[%emt 0:00:09]} 6. Nf3 {[%emt 0:00:05]} Nc6 {[%emt 0:00:05]} 7. Be3 {[%emt 0:00:06]} a6 {[%emt 0:00:16]} 8. Ne2 {[%emt 0:00:47]} Be7 {[%emt 0:05:35]} 9. c3 {[%emt 0:00:11]} O-O {[%emt 0:01:32]} 10. dxc5 {[%emt 0:03:06] The position is equal.} Nxc5 {[%emt 0:00:51]} 11. Ng3 {[%emt 0:00:27]} b5 {[%emt 0:03:54]} 12. Be2 {[%emt 0:03:15]} Bb7 {[%emt 0:04:03]} 13. O-O {[%emt 0:03:05]} g6 {[%emt 0:06:51]} 14. Nd4 {[%emt 0:12:42]} Rc8 {[%emt 0:03:50]} 15. Qd2 {[%emt 0:10:56]} Qc7 {[%emt 0:04:49]} 16. Rac1 {[%emt 0:04:37]} Ne4 {[%emt 0:02:58]} 17. Nxe4 {[%emt 0:01:07]} dxe4 {[%emt 0:00:03]} 18. Nxc6 {[%emt 0:05:46]} Qxc6 {[%emt 0:02:47]} 19. Rfd1 {[%emt 0:02:33]} Rfd8 {[%emt 0:01:26]} 20. Qe1 {[%emt 0:00:21]} Qc7 {[%emt 0:06:45]} 21. Rxd8+ Rxd8 {[%emt 0:00:18]} 22. Qf2 {[%emt 0:16:49]} Rd7 {[%emt 0:02:04]} 23. h3 {[%emt 0:04:03]} h5 {[%emt 0:05:28]} 24. Kh2 {[%emt 0:01:39]} h4 {[%emt 0:01:13]} 25. c4 {[%emt 0:02:59]} bxc4 {[%emt 0:04:40]} 26. Rxc4 {[%emt 0:03:05]} Qd8 {[%emt 0:00:58]} 27. Bb6 {[%emt 0:04:25]} Qb8 {[%emt 0:02:53]} 28. Rc2 {[%emt 0:03:58]} Bd8 {[%emt 0:10:20]} 29. Ba7 $1 {[%emt 0:05:24]} Qa8 {[%emt 0:00:19]} 30. b4 {[%emt 0:01:20]} Bc6 {[%emt 0:03:11] [#] ...Ba4 would now be deadly.} 31. Bc5 {[%emt 0:04:50]} (31. Bxa6 $2 {is the wrong capture.} Rxa7 32. Bc4 Rd7 $19) 31... Ba4 {[%emt 0:01:00]} 32. Rb2 {[%emt 0:00:30]} Qc6 {[%emt 0:02:15]} 33. Qe3 {[%emt 0:01:15]} Bc7 {[%emt 0:08:31]} 34. Rd2 {[%emt 0:01:08]} Rxd2 {[%emt 0:00:18]} 35. Qxd2 {[%emt 0:00:01]} Bb5 {[%emt 0:00:09]} 36. Bxb5 {[%emt 0:02:02]} axb5 {[%emt 0:00:45]} 37. Qf2 {[%emt 0:04:21]} Bd8 {[%emt 0:03:15]} 38. Qd4 {[%emt 0:00:21] Repels Qd7} (38. Kg1 $11) 38... Bc7 {[%emt 0:00:21]} (38... Qd5 $15) 39. Qf2 {[%emt 0:00:07]} (39. Be7 $11 {deserves consideration.}) 39... Bd8 $15 {[%emt 0:00:21]} 40. Qd4 {[%emt 0:00:12]} Bc7 {[%emt 0:00:06] Weighted Error Value: White=0.06 (flawless) /Black=0.06 (flawless) .  Mistake:       	White=2     	Black=2      Inaccurate:     	White=1     	Black=1      OK:         	White=14    	Black=13     Best:        	---       	Black=1      Strong:       	White=1     	---} (40... Qd5 $15) 1/2-1/2

[Event "German Bundesliga 2024-25"]
[Site "Germany"]
[Date "2024.10.06"]
[Round "2.3"]
[White "Pechac, Jergus"]
[Black "Feuerstack, Aljoscha"]
[Result "1-0"]
[Annotator "TA"]
[ECO "B31"]
[WhiteElo "2582"]
[BlackElo "2466"]
[PlyCount "55"]
[EventDate "2024.09.27"]
[EventType "team-tourn"]
[EventCountry "GER"]
[SourceTitle "playchess.com"]
[Source "ChessBase"]
[SourceQuality "1"]
[WhiteTeam "TU Dresden"]
[BlackTeam "St. Pauli"]
[TimeControl "40/5400+30:1800+30"]

{[%evp 9,55,-17,-16,-21,0,-4,0,-22,-15,-18,-11,-27,-14,-15,0,-20,-6,-35,-24,-31,-32,-32,-33,-29,88,26,268,0,496,488,611,558,610,597,593,568,1425,984,1601,1005,971,885,1054,1012,1300,562,574,579]} 1. e4 {[%emt 0:00:52]} c5 {[%emt 0:00:17]} 2. a4 {[%emt 0:00:12]} e6 {[%emt 0:03:25]} 3. f4 {[%emt 0:00:30]} Nf6 {[%emt 0:06:28]} 4. d3 {[%emt 0:01:06]} Nc6 {[%emt 0:02:37]} 5. Nf3 {[%emt 0:00:26]} d5 {[%emt 0:00:50]} 6. e5 {[%emt 0:01:13]} Ng8 {[%emt 0:02:57]} 7. c3 {[%emt 0:08:39]} h5 {[%emt 0:07:43]} 8. g3 {[%emt 0:04:12] The position is equal.} Nh6 {[%emt 0:02:20]} 9. Na3 {[%emt 0:01:27]} Nf5 {[%emt 0:02:47]} 10. Bh3 {[%emt 0:01:42]} d4 {[%emt 0:08:49]} 11. Nc4 {[%emt 0:01:31]} b6 {[%emt 0:06:14]} 12. Ng5 {[%emt 0:01:54]} Ba6 {[%emt 0:12:27]} 13. Qe2 {[%emt 0:14:08]} Be7 {[%emt 0:06:04]} 14. Ne4 {[%emt 0:07:31]} Bxc4 {[%emt 0:06:22]} 15. dxc4 {[%emt 0:00:52]} Na5 {[%emt 0:00:12][%cal Bc6a5,Ba5c4,Bc4e5,Be5d3][%mdl 32]} 16. O-O {[%emt 0:02:35]} dxc3 {[%emt 0:04:51] [#]} (16... Qd7 $11) 17. bxc3 {[%emt 0:01:15]} (17. Bxf5 $1 $16 {Strongly threatening Rd1.} Nb3 18. Nxc3 (18. Rd1 Nd4 $14)) 17... Nd4 $2 {[%emt 0:01:36]} 18. Qf2 $2 {[%emt 0:13:51]} (18. cxd4 $18 Qxd4+ 19. Kh1 (19. Be3 Qxe4 20. Bg2 Qxc4 $15) 19... Qxa1 20. f5 Qxe5 21. Bb2) 18... Ndb3 $2 {[%emt 0:01:21][%mdl 8192] [#]} (18... Nf5 $1 $11) 19. f5 $1 $18 {[%emt 0:00:28][%cal Bf4f5,Bf5e6][%mdl 32] aiming for fxe6! White is clearly winning.} Nxc4 {[%emt 0:11:02] [#]} (19... Nxa1 20. fxe6 Qc7 21. Nd6+ (21. Qxf7+ Kd8 $18) (21. exf7+ Kf8 $18) 21... Kd8 22. Nb5 (22. exf7 Qd7 $18) (22. Qxf7 Nc6 $18) (22. Nxf7+ Kc8 $18)) (19... f6 20. fxe6) 20. fxe6 $1 {[%emt 0:08:14][%csl Ge6,Gf1][%cal Rf2f7]} Nxe5 {[%emt 0:00:09] [#]} 21. Bf4 $1 {[%emt 0:08:20]} Nd3 {[%emt 0:02:58]} (21... Nxa1 22. Bxe5) 22. Qf3 {[%emt 0:00:04]} (22. exf7+ Kf8 23. Qf3 Nxf4 24. gxf4 Nxa1 $16) (22. Qa2 Nxf4 23. Qxb3 (23. Rxf4 Nxa1 24. Rxf7 Qd1+ 25. Bf1 Rf8 $11) 23... Nxh3+ $15) 22... Nxa1 {[%emt 0:03:40]} 23. Bd6 {[%emt 0:01:17][%csl Ge6,Gf1][%cal Rf3f7]} f6 {[%emt 0:03:38]} 24. Qxd3 {[%emt 0:06:34] Intending Nxf6+ and mate.} O-O {[%emt 0:00:30]} 25. Bf5 {[%emt 0:00:18]} (25. Rxa1 f5 26. Rd1 fxe4 27. Qxe4 (27. Qc4 Rf6 $15) 27... Bxd6 $11) 25... Bxd6 {[%emt 0:01:46]} 26. Nxd6 {[%emt 0:00:15][%cal Od3f3] White wants to mate with Qf3!} ({Weaker is} 26. Rxa1 Be5 27. Qf3 Qe8 $15) 26... g5 {[%emt 0:01:47]} 27. Rxa1 {[%emt 0:01:16] Black is weak on the light squares} (27. Bh7+ $142 Kh8 28. Be4 (28. Rxa1 Qe7 $18)) 27... Qe7 {[%emt 0:00:18]} 28. Nf7 {[%emt 0:00:12] Inhibits Rad8.   Weighted Error Value: White=0.62/Black=0.68.  Loses game:     	---       	Black=2      Missed win:     	White=1     	---        Mistake:       	White=1     	Black=1      Inaccurate:     	White=2     	Black=2      OK:         	White=4     	Black=4      Strong:       	White=1     	---} 1-0